[Event "Early-Titled-Tuesday-Blitz-February-27-2024"]
[Site "Chess.com"]
[Date "2024.02.27"]
[Round "3"]
[White "wqws"]
[Black "Seochesspie"]
[Result "1-0"]
[WhiteElo "2685"]
[BlackElo "2853"]
[TimeControl "180+1"]
[EndTime "8:27:52 PST"]
[Termination "wqws won by resignation"]

1. e4 {[%clk 0:02:59.6]} 1... c6 {[%clk 0:03:00.5]} 2. d4 {[%clk 0:02:59.3]}
2... d5 {[%clk 0:03:01.4]} 3. e5 {[%clk 0:02:57.2]} 3... Bf5 {[%clk 0:03:01]} 4.
h4 {[%clk 0:02:56.7]} 4... a6 {[%clk 0:03:00.1]} 5. c4 {[%clk 0:02:51.6]} 5...
e6 {[%clk 0:02:46.8]} 6. Nc3 {[%clk 0:02:49.4]} 6... h5 {[%clk 0:02:45.6]} 7.
cxd5 {[%clk 0:02:48.5]} 7... cxd5 {[%clk 0:02:45.2]} 8. Bd3 {[%clk 0:02:47.1]}
8... Bxd3 {[%clk 0:02:45.1]} 9. Qxd3 {[%clk 0:02:48]} 9... Nc6 {[%clk 0:02:46]}
10. Bg5 {[%clk 0:02:44.3]} 10... Qb6 {[%clk 0:02:45]} 11. Nge2 {[%clk
0:02:36.5]} 11... Nge7 {[%clk 0:02:38.2]} 12. O-O {[%clk 0:02:29.5]} 12... Nf5
{[%clk 0:02:38.2]} 13. Rfd1 {[%clk 0:02:26.4]} 13... g6 {[%clk 0:02:13]} 14. Bf6
{[%clk 0:02:09.6]} 14... Bg7 {[%clk 0:02:12.9]} 15. Bxg7 {[%clk 0:02:07.5]}
15... Nxg7 {[%clk 0:02:13.8]} 16. Nf4 {[%clk 0:01:58.6]} 16... Nf5 {[%clk
0:02:11.4]} 17. Ncxd5 {[%clk 0:01:38.2]} 17... exd5 {[%clk 0:02:11.1]} 18. Nxd5
{[%clk 0:01:38.6]} 18... Qd8 {[%clk 0:01:57]} 19. Qe4 {[%clk 0:01:09.4]} 19...
Qxh4 {[%clk 0:01:43.9]} 20. Qxh4 {[%clk 0:01:07.4]} 20... Nxh4 {[%clk
0:01:43.7]} 21. Nc7+ {[%clk 0:01:08.3]} 21... Kd7 {[%clk 0:01:41.8]} 22. Nxa8
{[%clk 0:01:09.2]} 22... Rxa8 {[%clk 0:01:41.8]} 23. f4 {[%clk 0:01:07.8]} 23...
Nf5 {[%clk 0:01:37.8]} 24. d5 {[%clk 0:01:01.5]} 24... Nce7 {[%clk 0:01:38.2]}
25. Rac1 {[%clk 0:00:51.2]} 25... Ne3 {[%clk 0:01:36.9]} 26. d6 {[%clk
0:00:51.3]} 26... Nc6 {[%clk 0:00:56.7]} 27. Rd3 {[%clk 0:00:42.2]} 27... Nf5
{[%clk 0:00:56.8]} 28. Rb3 {[%clk 0:00:33]} 28... b5 {[%clk 0:00:56.6]} 29. Rbc3
{[%clk 0:00:29.4]} 29... Nfd4 {[%clk 0:00:55.5]} 30. Kf2 {[%clk 0:00:29.2]}
30... Rc8 {[%clk 0:00:56]} 31. Ke3 {[%clk 0:00:27.4]} 31... Ne6 {[%clk
0:00:56.1]} 32. Ke4 {[%clk 0:00:24.3]} 32... b4 {[%clk 0:00:54]} 33. Rc4 {[%clk
0:00:22.6]} 33... a5 {[%clk 0:00:54.3]} 34. g3 {[%clk 0:00:20.8]} 34... Ned8
{[%clk 0:00:50.2]} 35. Kd5 {[%clk 0:00:20.6]} 35... a4 {[%clk 0:00:43.5]} 36.
Rc5 {[%clk 0:00:19.7]} 36... b3 {[%clk 0:00:35]} 37. a3 {[%clk 0:00:19.6]} 37...
Na7 {[%clk 0:00:20.3]} 38. Rc7+ {[%clk 0:00:19.1]} 1-0

[Event "Early-Titled-Tuesday-Blitz-February-27-2024"]
[Site "Chess.com"]
[Date "2024.02.27"]
[Round "3"]
[White "LangesNasenhaar"]
[Black "1mbl4"]
[Result "0-1"]
[WhiteElo "2405"]
[BlackElo "2603"]
[TimeControl "180+1"]
[EndTime "8:27:53 PST"]
[Termination "1mbl4 won by resignation"]

1. d4 {[%clk 0:03:00.9]} 1... Nf6 {[%clk 0:02:58.5]} 2. Bg5 {[%clk 0:03:00.7]}
2... g6 {[%clk 0:02:57.6]} 3. Bxf6 {[%clk 0:03:00.1]} 3... exf6 {[%clk
0:02:58.5]} 4. c4 {[%clk 0:03:00.3]} 4... Bg7 {[%clk 0:02:58.5]} 5. e3 {[%clk
0:03:00.8]} 5... f5 {[%clk 0:02:57.5]} 6. g3 {[%clk 0:03:00.7]} 6... d6 {[%clk
0:02:56.6]} 7. Bg2 {[%clk 0:03:00]} 7... c6 {[%clk 0:02:56.3]} 8. Ne2 {[%clk
0:02:58.6]} 8... Nd7 {[%clk 0:02:55.5]} 9. Nbc3 {[%clk 0:02:58.3]} 9... Nf6
{[%clk 0:02:52.4]} 10. Qc2 {[%clk 0:02:58.3]} 10... O-O {[%clk 0:02:49.4]} 11.
b4 {[%clk 0:02:58]} 11... Bd7 {[%clk 0:02:46.2]} 12. O-O {[%clk 0:02:57.7]}
12... Rc8 {[%clk 0:02:33]} 13. c5 {[%clk 0:02:54]} 13... d5 {[%clk 0:02:31.8]}
14. a4 {[%clk 0:02:52.7]} 14... Ne4 {[%clk 0:02:29.9]} 15. b5 {[%clk 0:02:49.5]}
15... Re8 {[%clk 0:02:22.2]} 16. Rab1 {[%clk 0:02:40.3]} 16... b6 {[%clk
0:02:18.2]} 17. Nxe4 {[%clk 0:02:29.4]} 17... fxe4 {[%clk 0:02:04.6]} 18. cxb6
{[%clk 0:02:25.1]} 18... Qxb6 {[%clk 0:01:49.8]} 19. bxc6 {[%clk 0:02:12.1]}
19... Qxc6 {[%clk 0:01:50.7]} 20. Qxc6 {[%clk 0:02:10.8]} 20... Bxc6 {[%clk
0:01:41.8]} 21. a5 {[%clk 0:02:10]} 21... Bf8 {[%clk 0:01:32.7]} 22. Rfc1 {[%clk
0:01:58]} 22... Ba8 {[%clk 0:01:28.2]} 23. Rxc8 {[%clk 0:01:45.1]} 23... Rxc8
{[%clk 0:01:29.1]} 24. Bh3 {[%clk 0:01:43.9]} 24... f5 {[%clk 0:01:28.9]} 25.
Nf4 {[%clk 0:01:40.1]} 25... Kf7 {[%clk 0:01:22.2]} 26. Bf1 {[%clk 0:01:34.8]}
26... Bd6 {[%clk 0:01:19.1]} 27. Ba6 {[%clk 0:01:27.3]} 27... Rc7 {[%clk
0:01:13.1]} 28. h4 {[%clk 0:01:18.4]} 28... h6 {[%clk 0:01:13.3]} 29. h5 {[%clk
0:01:10.8]} 29... g5 {[%clk 0:01:07.7]} 30. Ng6 {[%clk 0:01:11]} 30... Kf6
{[%clk 0:00:47]} 31. Kg2 {[%clk 0:01:09.3]} 31... Rf7 {[%clk 0:00:40.3]} 32. Rc1
{[%clk 0:01:00.5]} 32... Rc7 {[%clk 0:00:39.7]} 33. Rb1 {[%clk 0:00:54]} 33...
Rc2 {[%clk 0:00:39.3]} 34. Bb7 {[%clk 0:00:49.5]} 34... Bxb7 {[%clk 0:00:38.4]}
35. Rxb7 {[%clk 0:00:49.4]} 35... f4 {[%clk 0:00:38.9]} 36. gxf4 {[%clk
0:00:46.3]} 36... gxf4 {[%clk 0:00:39.8]} 37. exf4 {[%clk 0:00:23.3]} 37... e3
{[%clk 0:00:39.4]} 38. Kf3 {[%clk 0:00:15]} 38... e2 {[%clk 0:00:39.8]} 39. Rb1
{[%clk 0:00:13.7]} 39... Bb4 {[%clk 0:00:39.8]} 40. Ne5 {[%clk 0:00:04.3]} 40...
e1=Q {[%clk 0:00:39.8]} 41. Rxe1 {[%clk 0:00:03.8]} 41... Bxe1 {[%clk
0:00:40.3]} 42. Nd3 {[%clk 0:00:04.3]} 42... Bxa5 {[%clk 0:00:38.5]} 0-1

[Event "Early-Titled-Tuesday-Blitz-February-27-2024"]
[Site "Chess.com"]
[Date "2024.02.27"]
[Round "3"]
[White "biostatistician"]
[Black "sokidze"]
[Result "1-0"]
[WhiteElo "2567"]
[BlackElo "2785"]
[TimeControl "180+1"]
[EndTime "8:27:54 PST"]
[Termination "biostatistician won on time"]

1. d4 {[%clk 0:03:00.9]} 1... Nf6 {[%clk 0:02:59.1]} 2. Nf3 {[%clk 0:03:00.1]}
2... d5 {[%clk 0:02:59]} 3. c4 {[%clk 0:02:59.6]} 3... e6 {[%clk 0:02:59.3]} 4.
Bg5 {[%clk 0:02:59.5]} 4... dxc4 {[%clk 0:02:58.2]} 5. Qa4+ {[%clk 0:02:59.4]}
5... Nbd7 {[%clk 0:02:56.4]} 6. e4 {[%clk 0:02:56.8]} 6... a6 {[%clk 0:02:00.7]}
7. e5 {[%clk 0:02:26.9]} 7... b5 {[%clk 0:01:55.5]} 8. Qc2 {[%clk 0:02:27.1]}
8... h6 {[%clk 0:01:56]} 9. Bh4 {[%clk 0:02:26]} 9... g5 {[%clk 0:01:56.2]} 10.
Nxg5 {[%clk 0:02:26.3]} 10... hxg5 {[%clk 0:01:55]} 11. Bxg5 {[%clk 0:02:27.2]}
11... Bh6 {[%clk 0:01:49.6]} 12. Bxh6 {[%clk 0:02:17.4]} 12... Rxh6 {[%clk
0:01:50.5]} 13. exf6 {[%clk 0:02:17.4]} 13... Bb7 {[%clk 0:01:49.5]} 14. Nc3
{[%clk 0:02:13.9]} 14... Qxf6 {[%clk 0:01:41]} 15. O-O-O {[%clk 0:02:13.8]}
15... Nb6 {[%clk 0:01:36]} 16. Kb1 {[%clk 0:02:05.6]} 16... O-O-O {[%clk
0:01:35.4]} 17. f3 {[%clk 0:01:58.9]} 17... Rh4 {[%clk 0:01:25.4]} 18. Ne2
{[%clk 0:01:42.6]} 18... Nd5 {[%clk 0:01:20.9]} 19. Qd2 {[%clk 0:01:39.2]} 19...
Rdh8 {[%clk 0:00:31.3]} 20. h3 {[%clk 0:01:35.8]} 20... Qg6+ {[%clk 0:00:24.3]}
21. Ka1 {[%clk 0:01:33.5]} 21... b4 {[%clk 0:00:19]} 22. g3 {[%clk 0:01:24.7]}
22... R4h7 {[%clk 0:00:18.5]} 23. Bg2 {[%clk 0:01:24.8]} 23... Rd8 {[%clk
0:00:15.2]} 24. f4 {[%clk 0:01:22.5]} 24... f6 {[%clk 0:00:13.2]} 25. Rc1 {[%clk
0:01:19.1]} 25... Kb8 {[%clk 0:00:07.4]} 26. Bxd5 {[%clk 0:01:13.9]} 26... Rxd5
{[%clk 0:00:02.7]} 27. Rxc4 {[%clk 0:01:10.2]} 27... Rdd7 {[%clk 0:00:01.4]} 28.
Rxb4 {[%clk 0:01:08.2]} 28... a5 {[%clk 0:00:01.4]} 29. Rb5 {[%clk 0:01:04.3]}
29... Qe4 {[%clk 0:00:02.1]} 30. Rc1 {[%clk 0:01:00]} 30... Rxh3 {[%clk
0:00:02.3]} 31. Nc3 {[%clk 0:00:20.6]} 31... Qxd4 {[%clk 0:00:02.4]} 32. Qc2
{[%clk 0:00:21.2]} 32... Rxg3 {[%clk 0:00:02.1]} 33. Qb3 {[%clk 0:00:20.9]} 1-0

[Event "Early-Titled-Tuesday-Blitz-February-27-2024"]
[Site "Chess.com"]
[Date "2024.02.27"]
[Round "3"]
[White "Kotlyar_K"]
[Black "ViktoriyaTarasova"]
[Result "1-0"]
[WhiteElo "2569"]
[BlackElo "2308"]
[TimeControl "180+1"]
[EndTime "8:27:54 PST"]
[Termination "Kotlyar_K won on time"]

1. d4 {[%clk 0:03:00.2]} 1... Nf6 {[%clk 0:02:59.6]} 2. c4 {[%clk 0:03:00.4]}
2... e6 {[%clk 0:02:59.7]} 3. Nc3 {[%clk 0:03:00.5]} 3... Bb4 {[%clk 0:02:59.2]}
4. e3 {[%clk 0:03:00.4]} 4... O-O {[%clk 0:02:59]} 5. Bd2 {[%clk 0:03:00.5]}
5... d5 {[%clk 0:02:59.3]} 6. Nf3 {[%clk 0:02:52.9]} 6... dxc4 {[%clk
0:02:50.6]} 7. Bxc4 {[%clk 0:02:51.7]} 7... c5 {[%clk 0:02:51.3]} 8. a3 {[%clk
0:02:27.4]} 8... Bxc3 {[%clk 0:02:50.7]} 9. Bxc3 {[%clk 0:02:26.3]} 9... Ne4
{[%clk 0:02:43.3]} 10. Rc1 {[%clk 0:02:23.6]} 10... Nxc3 {[%clk 0:02:41.9]} 11.
Rxc3 {[%clk 0:02:24.5]} 11... cxd4 {[%clk 0:02:36.8]} 12. Nxd4 {[%clk
0:02:23.3]} 12... a6 {[%clk 0:02:29.1]} 13. O-O {[%clk 0:02:19.5]} 13... e5
{[%clk 0:02:25.3]} 14. Nf3 {[%clk 0:02:07.5]} 14... Qe7 {[%clk 0:02:25.2]} 15.
Qc2 {[%clk 0:02:01.7]} 15... Nc6 {[%clk 0:02:23.3]} 16. Bd5 {[%clk 0:01:47]}
16... Bd7 {[%clk 0:02:18.6]} 17. Rd1 {[%clk 0:01:45.9]} 17... Kh8 {[%clk
0:02:00.7]} 18. b4 {[%clk 0:01:40]} 18... f5 {[%clk 0:01:52.9]} 19. Rc5 {[%clk
0:01:38.2]} 19... Rac8 {[%clk 0:00:26.8]} 20. Qb2 {[%clk 0:00:54.4]} 20... e4
{[%clk 0:00:22.2]} 21. Bxc6 {[%clk 0:00:31.7]} 21... Bxc6 {[%clk 0:00:10]} 22.
Nd4 {[%clk 0:00:24.7]} 22... Ba4 {[%clk 0:00:10.1]} 23. Nxf5 {[%clk 0:00:17.3]}
23... Qg5 {[%clk 0:00:03.4]} 24. h4 {[%clk 0:00:14]} 24... Qg6 {[%clk
0:00:01.7]} 25. Ne7 {[%clk 0:00:11.5]} 25... Qg4 {[%clk 0:00:01.4]} 26. Rdd5
{[%clk 0:00:02.8]} 1-0

[Event "Early-Titled-Tuesday-Blitz-February-27-2024"]
[Site "Chess.com"]
[Date "2024.02.27"]
[Round "3"]
[White "viktorgen2021"]
[Black "NowInChess"]
[Result "1-0"]
[WhiteElo "2508"]
[BlackElo "2273"]
[TimeControl "180+1"]
[EndTime "8:27:54 PST"]
[Termination "viktorgen2021 won on time"]

1. d4 {[%clk 0:02:54.9]} 1... Nf6 {[%clk 0:02:59.1]} 2. Nf3 {[%clk 0:02:52.3]}
2... g6 {[%clk 0:02:58.6]} 3. g3 {[%clk 0:02:50.8]} 3... d6 {[%clk 0:02:53.7]}
4. Bg2 {[%clk 0:02:51.1]} 4... Bg7 {[%clk 0:02:51.3]} 5. a4 {[%clk 0:02:43.8]}
5... a5 {[%clk 0:02:48.3]} 6. O-O {[%clk 0:02:43.4]} 6... O-O {[%clk 0:02:46.4]}
7. Nc3 {[%clk 0:02:44.3]} 7... Bf5 {[%clk 0:02:44.8]} 8. Ne1 {[%clk 0:02:40]}
8... d5 {[%clk 0:02:37.5]} 9. Nd3 {[%clk 0:02:38.2]} 9... Bxd3 {[%clk
0:02:32.4]} 10. cxd3 {[%clk 0:02:34.5]} 10... c6 {[%clk 0:02:32.2]} 11. e4
{[%clk 0:02:31.7]} 11... e6 {[%clk 0:02:25.2]} 12. Re1 {[%clk 0:02:17.8]} 12...
Na6 {[%clk 0:02:22.9]} 13. Be3 {[%clk 0:02:10.4]} 13... Qb6 {[%clk 0:02:07.7]}
14. Rb1 {[%clk 0:01:58.9]} 14... Rac8 {[%clk 0:01:55.1]} 15. b3 {[%clk
0:01:48.6]} 15... Nb4 {[%clk 0:01:50.5]} 16. h3 {[%clk 0:01:40.7]} 16... Nd7
{[%clk 0:01:39.8]} 17. e5 {[%clk 0:01:31.9]} 17... Qa6 {[%clk 0:01:21.6]} 18.
Bf1 {[%clk 0:01:30.3]} 18... Qb6 {[%clk 0:01:19.3]} 19. h4 {[%clk 0:01:29.4]}
19... h5 {[%clk 0:01:16.3]} 20. g4 {[%clk 0:01:26.6]} 20... hxg4 {[%clk
0:01:12.2]} 21. Qxg4 {[%clk 0:01:26.1]} 21... Nc2 {[%clk 0:01:00.5]} 22. Re2
{[%clk 0:01:20.6]} 22... Nxe3 {[%clk 0:00:55.7]} 23. fxe3 {[%clk 0:01:21.5]}
23... Qb4 {[%clk 0:00:52.2]} 24. Na2 {[%clk 0:01:10.9]} 24... Qe7 {[%clk
0:00:37.8]} 25. Bh3 {[%clk 0:00:57.9]} 25... c5 {[%clk 0:00:30.3]} 26. Rf1
{[%clk 0:00:54.3]} 26... cxd4 {[%clk 0:00:28.6]} 27. exd4 {[%clk 0:00:55.2]}
27... Rfe8 {[%clk 0:00:09.2]} 28. Ref2 {[%clk 0:00:52.9]} 28... Rf8 {[%clk
0:00:08.1]} 29. h5 {[%clk 0:00:49.2]} 29... gxh5 {[%clk 0:00:07.1]} 30. Qxh5
{[%clk 0:00:48.4]} 30... f5 {[%clk 0:00:07.1]} 31. exf6 {[%clk 0:00:45.2]} 31...
Rxf6 {[%clk 0:00:04.5]} 32. Rxf6 {[%clk 0:00:30.6]} 32... Nxf6 {[%clk
0:00:04.5]} 33. Qg6 {[%clk 0:00:24.1]} 33... Qf7 {[%clk 0:00:02.1]} 34. Qg5
{[%clk 0:00:22.1]} 34... Rf8 {[%clk 0:00:01.1]} 35. Nc3 {[%clk 0:00:17.6]} 1-0

[Event "Early-Titled-Tuesday-Blitz-February-27-2024"]
[Site "Chess.com"]
[Date "2024.02.27"]
[Round "3"]
[White "yuriydovzik"]
[Black "Happy1712Drummer"]
[Result "0-1"]
[WhiteElo "2122"]
[BlackElo "2399"]
[TimeControl "180+1"]
[EndTime "8:27:54 PST"]
[Termination "Happy1712Drummer won by resignation"]

1. b3 {[%clk 0:02:57]} 1... e5 {[%clk 0:02:58.9]} 2. Bb2 {[%clk 0:02:55.7]} 2...
d6 {[%clk 0:02:58.9]} 3. c4 {[%clk 0:02:49.4]} 3... Nf6 {[%clk 0:02:58.5]} 4. e3
{[%clk 0:02:49.2]} 4... Bf5 {[%clk 0:02:56.6]} 5. d4 {[%clk 0:02:44.5]} 5...
exd4 {[%clk 0:02:53.1]} 6. exd4 {[%clk 0:02:37.7]} 6... Be7 {[%clk 0:02:53.4]}
7. Nf3 {[%clk 0:02:33.6]} 7... O-O {[%clk 0:02:52.4]} 8. Bd3 {[%clk 0:02:30.5]}
8... Bg6 {[%clk 0:02:48.8]} 9. Bxg6 {[%clk 0:02:26.7]} 9... fxg6 {[%clk
0:02:43.9]} 10. O-O {[%clk 0:02:25.1]} 10... d5 {[%clk 0:02:32.9]} 11. c5 {[%clk
0:02:17.4]} 11... c6 {[%clk 0:02:30.7]} 12. Nbd2 {[%clk 0:02:09.7]} 12... Nbd7
{[%clk 0:02:30.3]} 13. b4 {[%clk 0:02:08.1]} 13... Qc7 {[%clk 0:02:13.1]} 14.
Qb3 {[%clk 0:02:00.1]} 14... a6 {[%clk 0:02:06.7]} 15. Ne5 {[%clk 0:01:55.6]}
15... Rae8 {[%clk 0:01:44.7]} 16. f4 {[%clk 0:01:52.9]} 16... Kh8 {[%clk
0:01:33.5]} 17. Qh3 {[%clk 0:01:45.2]} 17... Nxe5 {[%clk 0:01:27.5]} 18. dxe5
{[%clk 0:01:33.4]} 18... Nd7 {[%clk 0:01:12]} 19. Nb3 {[%clk 0:01:19.3]} 19...
b6 {[%clk 0:01:09.5]} 20. Nd4 {[%clk 0:01:10.1]} 20... bxc5 {[%clk 0:00:45.9]}
21. Ne6 {[%clk 0:01:05.4]} 21... Qa7 {[%clk 0:00:46.3]} 22. Nxf8 {[%clk
0:00:54.4]} 22... cxb4+ {[%clk 0:00:46.2]} 23. Kh1 {[%clk 0:00:53]} 23... Rxf8
{[%clk 0:00:46.1]} 24. f5 {[%clk 0:00:40.6]} 24... d4 {[%clk 0:00:20.5]} 25.
Bxd4 {[%clk 0:00:27.4]} 25... Qxd4 {[%clk 0:00:18.6]} 26. Rfd1 {[%clk
0:00:19.5]} 26... Qxe5 {[%clk 0:00:18.3]} 27. fxg6 {[%clk 0:00:18.7]} 27... h6
{[%clk 0:00:17.1]} 28. Qxd7 {[%clk 0:00:16.4]} 28... Bd6 {[%clk 0:00:13.4]} 29.
Rxd6 {[%clk 0:00:08.6]} 29... Qxa1+ {[%clk 0:00:08.5]} 30. Rd1 {[%clk
0:00:06.3]} 30... Rf1+ {[%clk 0:00:09.2]} 0-1

[Event "Early-Titled-Tuesday-Blitz-February-27-2024"]
[Site "Chess.com"]
[Date "2024.02.27"]
[Round "3"]
[White "SahibSinghKnight"]
[Black "starworld123"]
[Result "0-1"]
[WhiteElo "2561"]
[BlackElo "2837"]
[TimeControl "180+1"]
[EndTime "8:27:55 PST"]
[Termination "starworld123 won by resignation"]

1. e4 {[%clk 0:03:00.9]} 1... d6 {[%clk 0:02:56.9]} 2. d4 {[%clk 0:02:58.8]}
2... Nf6 {[%clk 0:02:56.1]} 3. Nc3 {[%clk 0:02:59.3]} 3... g6 {[%clk 0:02:55.9]}
4. Bg5 {[%clk 0:02:45.6]} 4... Bg7 {[%clk 0:02:53.5]} 5. Qd2 {[%clk 0:02:44.7]}
5... Nbd7 {[%clk 0:02:50.6]} 6. O-O-O {[%clk 0:02:43]} 6... h6 {[%clk
0:02:40.9]} 7. Bh4 {[%clk 0:02:42.3]} 7... g5 {[%clk 0:02:37.4]} 8. Bg3 {[%clk
0:02:41]} 8... Nh5 {[%clk 0:02:38.1]} 9. Nf3 {[%clk 0:02:25.1]} 9... e6 {[%clk
0:02:32.1]} 10. Qe1 {[%clk 0:02:03.1]} 10... a6 {[%clk 0:02:24.7]} 11. d5 {[%clk
0:01:58.8]} 11... Nxg3 {[%clk 0:02:07.4]} 12. hxg3 {[%clk 0:01:58.4]} 12... Qe7
{[%clk 0:02:00.9]} 13. Nd4 {[%clk 0:01:55.3]} 13... Nc5 {[%clk 0:01:49]} 14. Be2
{[%clk 0:01:45.4]} 14... Bxd4 {[%clk 0:01:16.4]} 15. Rxd4 {[%clk 0:01:44.8]}
15... e5 {[%clk 0:01:16.9]} 16. Rd1 {[%clk 0:01:40.1]} 16... Bd7 {[%clk
0:01:14.7]} 17. Rh2 {[%clk 0:01:26.1]} 17... O-O-O {[%clk 0:01:11.5]} 18. b4
{[%clk 0:01:23]} 18... Na4 {[%clk 0:01:10.7]} 19. Nxa4 {[%clk 0:01:23]} 19...
Bxa4 {[%clk 0:01:11.6]} 20. Qc3 {[%clk 0:01:23.1]} 20... Qf6 {[%clk 0:01:02.4]}
21. Qf3 {[%clk 0:01:13.8]} 21... Qg6 {[%clk 0:00:57.1]} 22. Rdh1 {[%clk
0:00:19.6]} 22... Bd7 {[%clk 0:00:53.4]} 23. g4 {[%clk 0:00:13.6]} 23... Kb8
{[%clk 0:00:53.3]} 24. Qe3 {[%clk 0:00:13.3]} 24... c6 {[%clk 0:00:47.7]} 25.
Bxa6 {[%clk 0:00:06.2]} 25... cxd5 {[%clk 0:00:41]} 26. Qb6 {[%clk 0:00:05.8]}
26... Bc8 {[%clk 0:00:36.3]} 27. Rh3 {[%clk 0:00:04.7]} 27... Qxe4 {[%clk
0:00:22.5]} 28. Rc3 {[%clk 0:00:04.7]} 28... Rd7 {[%clk 0:00:22.5]} 29. Bb5
{[%clk 0:00:04.5]} 29... Qxb4 {[%clk 0:00:17.4]} 30. Rb3 {[%clk 0:00:05]} 30...
Qf4+ {[%clk 0:00:17.9]} 31. Kb1 {[%clk 0:00:05.5]} 31... Rc7 {[%clk 0:00:17.5]}
32. Ra3 {[%clk 0:00:06]} 32... Qd4 {[%clk 0:00:17.1]} 33. Rb3 {[%clk 0:00:06.5]}
33... Qxb6 {[%clk 0:00:17.2]} 0-1

[Event "Early-Titled-Tuesday-Blitz-February-27-2024"]
[Site "Chess.com"]
[Date "2024.02.27"]
[Round "3"]
[White "GatoRojo150"]
[Black "JJDAREK"]
[Result "0-1"]
[WhiteElo "2577"]
[BlackElo "2413"]
[TimeControl "180+1"]
[EndTime "8:27:56 PST"]
[Termination "JJDAREK won on time"]

1. e4 {[%clk 0:03:00.9]} 1... d6 {[%clk 0:03:00]} 2. d4 {[%clk 0:03:00.6]} 2...
g6 {[%clk 0:03:00]} 3. Nc3 {[%clk 0:03:00.6]} 3... Bg7 {[%clk 0:03:00]} 4. Bc4
{[%clk 0:03:00.6]} 4... Nc6 {[%clk 0:02:54.3]} 5. Nf3 {[%clk 0:02:59.8]} 5...
Nf6 {[%clk 0:02:40]} 6. Qe2 {[%clk 0:02:59.1]} 6... Bg4 {[%clk 0:02:09]} 7. e5
{[%clk 0:02:58.7]} 7... Nxd4 {[%clk 0:02:00.1]} 8. Bxf7+ {[%clk 0:02:54.2]} 8...
Kxf7 {[%clk 0:01:51.3]} 9. Qc4+ {[%clk 0:02:49.2]} 9... d5 {[%clk 0:01:17.4]}
10. Qxd4 {[%clk 0:02:37.3]} 10... Bxf3 {[%clk 0:01:17.4]} 11. gxf3 {[%clk
0:02:24.9]} 11... Nh5 {[%clk 0:01:11.4]} 12. f4 {[%clk 0:02:20.5]} 12... e6
{[%clk 0:01:09.4]} 13. Be3 {[%clk 0:02:03]} 13... Rf8 {[%clk 0:01:08.6]} 14. f5
{[%clk 0:01:53.6]} 14... exf5 {[%clk 0:01:05.1]} 15. O-O-O {[%clk 0:01:13]}
15... c6 {[%clk 0:01:05]} 16. Rhg1 {[%clk 0:01:09]} 16... Kg8 {[%clk 0:01:00.1]}
17. f4 {[%clk 0:01:00.9]} 17... Qe7 {[%clk 0:00:52.6]} 18. Kb1 {[%clk
0:00:59.7]} 18... Rfd8 {[%clk 0:00:51.3]} 19. Qd3 {[%clk 0:00:50.1]} 19... b6
{[%clk 0:00:49.4]} 20. Qe2 {[%clk 0:00:46.9]} 20... Qe6 {[%clk 0:00:45.6]} 21.
Qf3 {[%clk 0:00:44.9]} 21... Rd7 {[%clk 0:00:44.8]} 22. Rg5 {[%clk 0:00:39.9]}
22... Rad8 {[%clk 0:00:35.4]} 23. Ne2 {[%clk 0:00:39.8]} 23... c5 {[%clk
0:00:34.2]} 24. Rxh5 {[%clk 0:00:36.5]} 24... gxh5 {[%clk 0:00:34.3]} 25. Ng3
{[%clk 0:00:36.6]} 25... d4 {[%clk 0:00:33.6]} 26. Bc1 {[%clk 0:00:33]} 26... d3
{[%clk 0:00:32.4]} 27. cxd3 {[%clk 0:00:25.9]} 27... c4 {[%clk 0:00:32.6]} 28.
Nxh5 {[%clk 0:00:18.7]} 28... Rxd3 {[%clk 0:00:32.5]} 29. Qg2 {[%clk 0:00:18.8]}
29... Qg6 {[%clk 0:00:28.9]} 30. Rxd3 {[%clk 0:00:12.5]} 30... cxd3 {[%clk
0:00:26]} 31. Qf3 {[%clk 0:00:04.2]} 31... d2 {[%clk 0:00:19.3]} 32. Bxd2 {[%clk
0:00:03.7]} 32... Rxd2 {[%clk 0:00:20.2]} 33. Qa8+ {[%clk 0:00:04]} 33... Bf8
{[%clk 0:00:19.9]} 34. Ng3 {[%clk 0:00:02.3]} 34... Qe6 {[%clk 0:00:17.1]} 35.
a3 {[%clk 0:00:01.4]} 35... Qd5 {[%clk 0:00:17]} 0-1

[Event "Early-Titled-Tuesday-Blitz-February-27-2024"]
[Site "Chess.com"]
[Date "2024.02.27"]
[Round "3"]
[White "baki83"]
[Black "JonSnowNW1"]
[Result "1-0"]
[WhiteElo "2841"]
[BlackElo "2516"]
[TimeControl "180+1"]
[EndTime "8:27:58 PST"]
[Termination "baki83 won by resignation"]

1. e4 {[%clk 0:02:52.2]} 1... c5 {[%clk 0:02:59.5]} 2. Nf3 {[%clk 0:02:52]} 2...
d6 {[%clk 0:03:00]} 3. Bb5+ {[%clk 0:02:51.3]} 3... Nd7 {[%clk 0:02:59.5]} 4.
O-O {[%clk 0:02:50.9]} 4... Nf6 {[%clk 0:02:59.1]} 5. Re1 {[%clk 0:02:50.6]}
5... g6 {[%clk 0:02:50.7]} 6. c3 {[%clk 0:02:49.4]} 6... Bg7 {[%clk 0:02:38.9]}
7. d4 {[%clk 0:02:46.8]} 7... e6 {[%clk 0:01:44.6]} 8. Bf4 {[%clk 0:02:43.2]}
8... Qb6 {[%clk 0:01:31]} 9. Na3 {[%clk 0:02:36.6]} 9... O-O {[%clk 0:01:07.7]}
10. dxc5 {[%clk 0:02:36.3]} 10... dxc5 {[%clk 0:00:58.8]} 11. Bd6 {[%clk
0:02:35.8]} 11... Rd8 {[%clk 0:00:51.6]} 12. e5 {[%clk 0:02:22.1]} 12... Nd5
{[%clk 0:00:37.2]} 13. c4 {[%clk 0:01:39.2]} 13... Nc7 {[%clk 0:00:29.7]} 14.
Be7 {[%clk 0:01:24.9]} 14... Re8 {[%clk 0:00:25.4]} 15. Qd6 {[%clk 0:01:24.4]}
15... Qxd6 {[%clk 0:00:20.2]} 16. exd6 {[%clk 0:01:24]} 16... Na6 {[%clk
0:00:17.3]} 17. Re2 {[%clk 0:01:13.5]} 17... Bf8 {[%clk 0:00:16.5]} 18. Bxf8
{[%clk 0:01:04.9]} 18... Kxf8 {[%clk 0:00:16.6]} 19. Rd1 {[%clk 0:01:05.4]}
19... Nb4 {[%clk 0:00:16.6]} 20. b3 {[%clk 0:00:54.4]} 20... a6 {[%clk
0:00:15.7]} 21. Ba4 {[%clk 0:00:54.7]} 21... Rd8 {[%clk 0:00:15.7]} 22. Ng5
{[%clk 0:00:53]} 22... Nb6 {[%clk 0:00:15.7]} 23. Nxh7+ {[%clk 0:00:48.6]} 23...
Kg7 {[%clk 0:00:15.7]} 24. Ng5 {[%clk 0:00:49.3]} 24... Nxa4 {[%clk 0:00:16]}
25. bxa4 {[%clk 0:00:49.9]} 25... Bd7 {[%clk 0:00:16.6]} 26. a5 {[%clk
0:00:49.5]} 26... Ba4 {[%clk 0:00:16.8]} 27. Rdd2 {[%clk 0:00:48.9]} 27... Nc6
{[%clk 0:00:15.7]} 28. Nf3 {[%clk 0:00:44.1]} 28... Nxa5 {[%clk 0:00:15.8]} 29.
h4 {[%clk 0:00:40.7]} 29... Nc6 {[%clk 0:00:12.7]} 30. Nb1 {[%clk 0:00:39.7]}
30... Rd7 {[%clk 0:00:12.7]} 31. Nc3 {[%clk 0:00:40]} 31... b5 {[%clk
0:00:12.1]} 32. Nxa4 {[%clk 0:00:39.5]} 32... bxa4 {[%clk 0:00:12.3]} 33. Ne5
{[%clk 0:00:39.6]} 33... Nxe5 {[%clk 0:00:11.9]} 34. Rxe5 {[%clk 0:00:40.4]}
34... Rad8 {[%clk 0:00:12.3]} 35. Rxc5 {[%clk 0:00:40.7]} 35... Rxd6 {[%clk
0:00:12.3]} 36. Rxd6 {[%clk 0:00:41.3]} 36... Rxd6 {[%clk 0:00:13.2]} 37. Ra5
{[%clk 0:00:41.9]} 37... Rd1+ {[%clk 0:00:13.1]} 38. Kh2 {[%clk 0:00:42.1]}
38... Rd4 {[%clk 0:00:13.8]} 39. Rxa4 {[%clk 0:00:36.1]} 39... Rxh4+ {[%clk
0:00:14]} 40. Kg3 {[%clk 0:00:36.7]} 40... Rd4 {[%clk 0:00:14.7]} 41. Kf3 {[%clk
0:00:37.3]} 41... Rd3+ {[%clk 0:00:14.9]} 42. Ke2 {[%clk 0:00:36.7]} 42... Rc3
{[%clk 0:00:15.4]} 43. Kd2 {[%clk 0:00:37]} 1-0